fUST/lending_fUST_20260513
["ID","MTS","AMOUNT","RATE_DAILY","PERIOD"]
[422179881,1778656239000,-500.0,0.00010957,2]
[422179879,1778656239000,-500.0,0.00010957,2]
[422179888,1778656239000,-1158.72543874,0.00010957,2]
[422179887,1778656239000,-1158.72543874,0.00010957,2]
[422179876,1778656239000,-500.0,0.00010957,2]
[422179886,1778656239000,-390.17613707,0.00010957,2]
[422179882,1778656239000,-500.0,0.00010957,2]
[422179894,1778656239000,-1158.72543874,0.00010957,2]
[422179890,1778656239000,-1158.72543874,0.00010957,2]
[422179900,1778656239000,-1158.72543874,0.00010957,2]
[422179889,1778656239000,-1158.72543874,0.00010957,2]
[422179892,1778656239000,-1158.72543874,0.00010957,2]
[422179898,1778656239000,-1158.72543874,0.00010957,2]
[422179895,1778656239000,-1158.72543874,0.00010957,2]
[422179896,1778656239000,-1158.72543874,0.00010957,2]
[422179897,1778656239000,-1158.72543874,0.00010957,2]
[422179899,1778656239000,-1158.72543874,0.00010957,2]
[422179893,1778656239000,-1158.72543874,0.00010957,2]
[422179902,1778656239000,-1158.72543874,0.00010957,2]
[422179877,1778656239000,-500.0,0.00010957,2]
[422179912,1778656239000,-442.73336802,0.00010957,2]
[422179891,1778656239000,-1158.72543874,0.00010957,2]
[422179875,1778656239000,-500.0,0.00010957,2]
[422179859,1778656239000,-500.0,0.00010957,2]
[422179873,1778656239000,-500.0,0.00010957,2]
[422179913,1778656239000,-3372.9832,0.00010958,2]
[422179845,1778656239000,-151.0,0.00010951,2]
[422179855,1778656239000,-151.0,0.00010957,2]
[422179850,1778656239000,-305.621802,0.00010957,2]
[422179851,1778656239000,-305.621802,0.00010957,2]
[422179853,1778656239000,-151.0,0.00010957,2]
[422179852,1778656239000,-151.0,0.00010957,2]
[422179847,1778656239000,-152.0,0.00010952,2]
[422179846,1778656239000,-644.79446246,0.00010952,2]
[422179849,1778656239000,-305.621802,0.00010957,2]
[422179854,1778656239000,-151.0,0.00010957,2]
[422179848,1778656239000,-305.621802,0.00010957,2]
[422179856,1778656239000,-288.55506945,0.00010957,2]
[422179871,1778656239000,-500.0,0.00010957,2]
[422179857,1778656239000,-500.0,0.00010957,2]
[422179858,1778656239000,-500.0,0.00010957,2]
[422179860,1778656239000,-500.0,0.00010957,2]
[422179862,1778656239000,-500.0,0.00010957,2]
[422179863,1778656239000,-500.0,0.00010957,2]
[422179864,1778656239000,-500.0,0.00010957,2]
[422179872,1778656239000,-500.0,0.00010957,2]
[422179870,1778656239000,-500.0,0.00010957,2]
[422179874,1778656239000,-500.0,0.00010957,2]
[422179868,1778656239000,-500.0,0.00010957,2]
[422179869,1778656239000,-597.59674457,0.00010957,2]
[422179866,1778656239000,-500.0,0.00010957,2]
[422179867,1778656239000,-500.0,0.00010957,2]
[422179865,1778656239000,-500.0,0.00010957,2]
[422179861,1778656239000,-500.0,0.00010957,2]
[422179904,1778656239000,-1235.97380132,0.00010957,2]
[422179923,1778656239000,-500.0,0.00010958,2]
[422179908,1778656239000,-1235.97380132,0.00010957,2]
[422179937,1778656239000,-537.66,0.00010958,2]
[422179941,1778656239000,-500.0,0.00010958,2]
[422179952,1778656239000,-500.0,0.00010958,2]
[422179942,1778656239000,-558.22,0.00010958,2]
[422179951,1778656239000,-500.0,0.00010958,2]
[422179944,1778656239000,-500.0,0.00010958,2]
[422179940,1778656239000,-500.0,0.00010958,2]
[422179943,1778656239000,-500.0,0.00010958,2]
[422179948,1778656239000,-500.0,0.00010958,2]
[422179947,1778656239000,-500.0,0.00010958,2]
[422179950,1778656239000,-500.0,0.00010958,2]
[422179945,1778656239000,-500.0,0.00010958,2]
[422179949,1778656239000,-500.0,0.00010958,2]
[422179954,1778656239000,-624.6,0.00010958,2]
[422179953,1778656239000,-500.0,0.00010958,2]
[422179964,1778656239000,-305.621802,0.00010958,2]
[422179965,1778656239000,-305.621802,0.00010958,2]
[422179955,1778656239000,-500.0,0.00010958,2]
[422179963,1778656239000,-500.0,0.00010958,2]
[422179962,1778656239000,-500.0,0.00010958,2]
[422179956,1778656239000,-500.0,0.00010958,2]
[422179957,1778656239000,-500.0,0.00010958,2]
[422179959,1778656239000,-193.50150523,0.00010958,2]
[422179958,1778656239000,-500.0,0.00010958,2]
[422179961,1778656239000,-585.55,0.00010958,2]
[422179960,1778656239000,-746.93,0.00010958,2]
[422179903,1778656239000,-1158.72543874,0.00010957,2]
[422179938,1778656239000,-500.0,0.00010958,2]
[422179928,1778656239000,-500.0,0.00010958,2]
[422179946,1778656239000,-500.0,0.00010958,2]
[422179930,1778656239000,-500.0,0.00010958,2]
[422179901,1778656239000,-1158.72543874,0.00010957,2]
[422179935,1778656239000,-500.0,0.00010958,2]
[422179910,1778656239000,-1235.97380132,0.00010957,2]
[422179911,1778656239000,-1235.97380132,0.00010957,2]
[422179906,1778656239000,-1235.97380132,0.00010957,2]
[422179907,1778656239000,-1235.97380132,0.00010957,2]
[422179909,1778656239000,-1235.97380132,0.00010957,2]
[422179905,1778656239000,-1235.97380132,0.00010957,2]
[422179919,1778656239000,-518.66,0.00010958,2]
[422179915,1778656239000,-500.0,0.00010958,2]
[422179926,1778656239000,-500.0,0.00010958,2]
[422179916,1778656239000,-500.0,0.00010958,2]
[422179918,1778656239000,-500.0,0.00010958,2]
[422179917,1778656239000,-500.0,0.00010958,2]
[422179914,1778656239000,-500.0,0.00010958,2]
[422179925,1778656239000,-500.0,0.00010958,2]
[422179931,1778656239000,-500.0,0.00010958,2]
[422179936,1778656239000,-500.0,0.00010958,2]
[422179932,1778656239000,-638.61,0.00010958,2]
[422179934,1778656239000,-500.0,0.00010958,2]
[422179929,1778656239000,-500.0,0.00010958,2]
[422179939,1778656239000,-763.23,0.00010958,2]
[422179933,1778656239000,-500.0,0.00010958,2]
[422179920,1778656239000,-550.7,0.00010958,2]
[422179922,1778656239000,-500.0,0.00010958,2]
[422179927,1778656239000,-511.25,0.00010958,2]
[422179921,1778656239000,-500.0,0.00010958,2]
[422179924,1778656239000,-500.0,0.00010958,2]
[422180016,1778656240000,-500.0,0.00010958,2]
[422180023,1778656240000,-993.42,0.00010958,2]
[422180022,1778656240000,-573.12208666,0.00010958,2]
[422180020,1778656240000,-500.0,0.00010958,2]
[422180018,1778656240000,-500.0,0.00010958,2]
[422180007,1778656240000,-500.0,0.00010958,2]
[422180000,1778656240000,-500.0,0.00010958,2]
[422180005,1778656240000,-500.0,0.00010958,2]
[422180001,1778656240000,-500.0,0.00010958,2]
[422179998,1778656240000,-500.0,0.00010958,2]
[422179999,1778656240000,-527.72755351,0.00010958,2]
[422180003,1778656240000,-500.0,0.00010958,2]
[422180008,1778656240000,-500.0,0.00010958,2]
[422180010,1778656240000,-500.0,0.00010958,2]
[422180037,1778656240000,-500.0,0.00010958,2]
[422180012,1778656240000,-500.0,0.00010958,2]
[422180009,1778656240000,-500.0,0.00010958,2]
[422180014,1778656240000,-500.0,0.00010958,2]
[422180025,1778656240000,-151.0,0.00010958,2]
[422180029,1778656240000,-151.0,0.00010958,2]
[422180027,1778656240000,-500.0,0.00010958,2]
[422180028,1778656240000,-151.0,0.00010958,2]
[422180035,1778656240000,-500.0,0.00010958,2]
[422180032,1778656240000,-500.0,0.00010958,2]
[422180030,1778656240000,-164.815765,0.00010958,2]
[422180036,1778656240000,-500.0,0.00010958,2]
[422180031,1778656240000,-500.0,0.00010958,2]
[422180034,1778656240000,-500.0,0.00010958,2]
[422180006,1778656240000,-500.0,0.00010958,2]
[422180011,1778656240000,-500.0,0.00010958,2]
[422180004,1778656240000,-2064.24,0.00010958,2]
[422179978,1778656240000,-305.621802,0.00010958,2]
[422179994,1778656240000,-743.64,0.00010958,2]
[422180033,1778656240000,-500.0,0.00010958,2]
[422179967,1778656240000,-305.621802,0.00010958,2]
[422179977,1778656240000,-500.0,0.00010958,2]
[422179969,1778656240000,-305.621802,0.00010958,2]
[422179968,1778656240000,-305.621802,0.00010958,2]
[422179970,1778656240000,-500.0,0.00010958,2]
[422179975,1778656240000,-305.621802,0.00010958,2]
[422179971,1778656240000,-305.621802,0.00010958,2]
[422179972,1778656240000,-305.621802,0.00010958,2]
[422179974,1778656240000,-305.621802,0.00010958,2]
[422179973,1778656240000,-305.621802,0.00010958,2]
[422179976,1778656240000,-305.621802,0.00010958,2]
[422179979,1778656240000,-305.621802,0.00010958,2]
[422179991,1778656240000,-500.0,0.00010958,2]
[422179984,1778656240000,-500.0,0.00010958,2]
[422179990,1778656240000,-500.0,0.00010958,2]
[422179988,1778656240000,-500.0,0.00010958,2]
[422179985,1778656240000,-500.0,0.00010958,2]
[422179983,1778656240000,-1134.48,0.00010958,2]
[422179981,1778656240000,-500.0,0.00010958,2]
[422179980,1778656240000,-305.621802,0.00010958,2]
[422179986,1778656240000,-500.0,0.00010958,2]
[422179982,1778656240000,-305.62179726,0.00010958,2]
[422179989,1778656240000,-500.0,0.00010958,2]
[422179987,1778656240000,-500.0,0.00010958,2]
[422179993,1778656240000,-555.2,0.00010958,2]
[422179996,1778656240000,-500.0,0.00010958,2]
[422179995,1778656240000,-500.0,0.00010958,2]
[422179997,1778656240000,-500.0,0.00010958,2]
[422180002,1778656240000,-501.12041908,0.00010958,2]
[422180038,1778656240000,-500.0,0.00010958,2]
[422179966,1778656240000,-305.621802,0.00010958,2]
[422180051,1778656240000,-500.0,0.00010958,2]
[422180075,1778656240000,-500.0,0.00010958,2]
[422180077,1778656240000,-500.0,0.00010958,2]
[422180076,1778656240000,-558.99,0.00010958,2]
[422180074,1778656240000,-500.0,0.00010958,2]
[422180082,1778656240000,-500.0,0.00010958,2]
[422180084,1778656240000,-500.0,0.00010958,2]
[422180085,1778656240000,-500.0,0.00010958,2]
[422180083,1778656240000,-500.0,0.00010958,2]
[422180086,1778656240000,-500.0,0.00010958,2]
[422180089,1778656240000,-828.42,0.00010958,2]
[422180093,1778656240000,-1000.0,0.00010958,2]
[422180087,1778656240000,-500.0,0.00010958,2]
[422180092,1778656240000,-500.0,0.00010958,2]
[422180090,1778656240000,-500.0,0.00010958,2]
[422180088,1778656240000,-430.56814879,0.00010958,2]
[422180091,1778656240000,-500.0,0.00010958,2]
[422180094,1778656240000,-1191.65,0.00010958,2]
[422180097,1778656240000,-500.0,0.00010958,2]
[422180107,1778656240000,-500.0,0.00010958,2]
[422180096,1778656240000,-500.0,0.00010958,2]
[422180105,1778656240000,-500.0,0.00010958,2]
[422180103,1778656240000,-5114.62,0.00010958,2]
[422180102,1778656240000,-500.0,0.00010958,2]
[422180099,1778656240000,-500.0,0.00010958,2]
[422180098,1778656240000,-500.0,0.00010958,2]
[422180104,1778656240000,-500.0,0.00010958,2]
[422180106,1778656240000,-958.19,0.00010958,2]
[422180101,1778656240000,-500.0,0.00010958,2]
[422180040,1778656240000,-809.0,0.00010958,2]
[422180071,1778656240000,-500.0,0.00010958,2]
[422180073,1778656240000,-500.0,0.00010958,2]
[422180100,1778656240000,-500.0,0.00010958,2]
[422180069,1778656240000,-500.0,0.00010958,2]
[422180070,1778656240000,-500.0,0.00010958,2]
[422180050,1778656240000,-1301.66,0.00010958,2]
[422180046,1778656240000,-500.0,0.00010958,2]
[422180039,1778656240000,-514.26,0.00010958,2]
[422180048,1778656240000,-1231.77,0.00010958,2]
[422180049,1778656240000,-2121.74,0.00010958,2]
[422180045,1778656240000,-500.0,0.00010958,2]
[422180042,1778656240000,-500.0,0.00010958,2]
[422180041,1778656240000,-1076.02,0.00010958,2]
[422180047,1778656240000,-500.0,0.00010958,2]
[422180043,1778656240000,-500.0,0.00010958,2]
[422180053,1778656240000,-500.0,0.00010958,2]
[422180064,1778656240000,-500.0,0.00010958,2]
[422180065,1778656240000,-2116.11,0.00010958,2]
[422180066,1778656240000,-500.0,0.00010958,2]
[422180044,1778656240000,-556.63,0.00010958,2]
[422180061,1778656240000,-500.0,0.00010958,2]
[422180080,1778656240000,-500.0,0.00010958,2]
[422180067,1778656240000,-416.74253484,0.00010958,2]
[422180081,1778656240000,-500.0,0.00010958,2]
[422180078,1778656240000,-269.94047253,0.00010958,2]
[422180062,1778656240000,-500.0,0.00010958,2]
[422180068,1778656240000,-500.0,0.00010958,2]
[422180079,1778656240000,-500.0,0.00010958,2]
[422180056,1778656240000,-500.0,0.00010958,2]
[422180052,1778656240000,-500.0,0.00010958,2]
[422180057,1778656240000,-500.0,0.00010958,2]
[422180058,1778656240000,-500.0,0.00010958,2]
[422180059,1778656240000,-500.0,0.00010958,2]
[422180054,1778656240000,-500.0,0.00010958,2]
[422180060,1778656240000,-500.0,0.00010958,2]
[422180153,1778656241000,-500.0,0.00010958,2]
[422180151,1778656241000,-5065.31,0.00010958,2]
[422180149,1778656241000,-500.0,0.00010958,2]
[422180146,1778656241000,-500.0,0.00010958,2]
[422180148,1778656241000,-500.0,0.00010958,2]
[422180142,1778656241000,-500.0,0.00010958,2]
[422180145,1778656241000,-440.02777531,0.00010958,2]
[422180144,1778656241000,-59.97222469,0.00010958,2]
[422180141,1778656241000,-500.0,0.00010958,2]
[422180140,1778656241000,-555.56,0.00010958,2]
[422180143,1778656241000,-500.0,0.00010958,2]
[422180147,1778656241000,-500.0,0.00010958,2]
[422180155,1778656241000,-982.66,0.00010958,2]
[422180166,1778656241000,-500.0,0.00010958,2]
[422180152,1778656241000,-500.0,0.00010958,2]
[422180154,1778656241000,-1290.08,0.00010958,2]
[422180156,1778656241000,-840.86,0.00010958,2]
[422180158,1778656241000,-500.0,0.00010958,2]
[422180168,1778656241000,-500.0,0.00010958,2]
[422180169,1778656241000,-500.0,0.00010958,2]
[422180167,1778656241000,-406.87660288,0.00010958,2]
[422180157,1778656241000,-500.0,0.00010958,2]
[422180160,1778656241000,-500.0,0.00010958,2]
[422180161,1778656241000,-722.41,0.00010958,2]
[422180163,1778656241000,-500.0,0.00010958,2]
[422180136,1778656241000,-500.0,0.00010958,2]
[422180162,1778656241000,-2117.6,0.00010958,2]
[422180150,1778656241000,-500.0,0.00010958,2]
[422180139,1778656241000,-614.27,0.00010958,2]
[422180122,1778656241000,-1000.0,0.00010958,2]
[422180137,1778656241000,-1460.87,0.00010958,2]
[422180159,1778656241000,-2346.14,0.00010958,2]
[422180108,1778656241000,-500.0,0.00010958,2]
[422180109,1778656241000,-1443.93,0.00010958,2]
[422180111,1778656241000,-500.0,0.00010958,2]
[422180113,1778656241000,-500.0,0.00010958,2]
[422180112,1778656241000,-485.53646741,0.00010958,2]
[422180110,1778656241000,-500.0,0.00010958,2]
[422180121,1778656241000,-500.0,0.00010958,2]
[422180120,1778656241000,-1000.0,0.00010958,2]
[422180118,1778656241000,-1000.0,0.00010958,2]
[422180117,1778656241000,-1000.0,0.00010958,2]
[422180114,1778656241000,-4681.51,0.00010958,2]
[422180115,1778656241000,-500.0,0.00010958,2]
[422180138,1778656241000,-449.87644302,0.00010958,2]
[422180119,1778656241000,-1000.0,0.00010958,2]
[422180125,1778656241000,-500.0,0.00010958,2]
[422180123,1778656241000,-1000.0,0.00010958,2]
[422180124,1778656241000,-1000.0,0.00010958,2]
[422180134,1778656241000,-500.0,0.00010958,2]
[422180133,1778656241000,-775.97244988,0.00010958,2]
[422180127,1778656241000,-1000.0,0.00010958,2]
[422180126,1778656241000,-1000.0,0.00010958,2]
[422180128,1778656241000,-1000.0,0.00010958,2]
[422180130,1778656241000,-500.0,0.00010958,2]
[422180132,1778656241000,-500.0,0.00010958,2]
[422180131,1778656241000,-1000.0,0.00010958,2]
[422180129,1778656241000,-1000.0,0.00010958,2]
[422180135,1778656241000,-500.0,0.00010958,2]
[422180116,1778656241000,-1000.0,0.00010958,2]
[422180165,1778656241000,-1841.69,0.00010958,2]
[422180171,1778656241000,-500.0,0.00010958,2]
[422180225,1778656241000,-1473.88,0.00010958,2]
[422180201,1778656241000,-500.0,0.00010958,2]
[422180204,1778656241000,-500.0,0.00010958,2]
[422180200,1778656241000,-500.0,0.00010958,2]
[422180205,1778656241000,-500.0,0.00010958,2]
[422180207,1778656241000,-1509.39,0.00010958,2]
[422180202,1778656241000,-500.0,0.00010958,2]
[422180211,1778656241000,-500.0,0.00010958,2]
[422180209,1778656241000,-500.0,0.00010958,2]
[422180213,1778656241000,-500.0,0.00010958,2]
[422180212,1778656241000,-1198.47,0.00010958,2]
[422180215,1778656241000,-1564.59,0.00010958,2]
[422180216,1778656241000,-500.0,0.00010958,2]
[422180220,1778656241000,-500.0,0.00010958,2]
[422180208,1778656241000,-4478.88,0.00010958,2]
[422180218,1778656241000,-816.67,0.00010958,2]
[422180219,1778656241000,-1503.55,0.00010958,2]
[422180221,1778656241000,-500.0,0.00010958,2]
[422180217,1778656241000,-500.0,0.00010958,2]
[422180210,1778656241000,-991.6,0.00010958,2]
[422180223,1778656241000,-500.0,0.00010958,2]
[422180228,1778656241000,-500.0,0.00010958,2]
[422180227,1778656241000,-30711.06,0.00010958,2]
[422180229,1778656241000,-500.0,0.00010958,2]
[422180224,1778656241000,-1186.88,0.00010958,2]
[422180226,1778656241000,-2058.52,0.00010958,2]
[422180231,1778656241000,-2628.55,0.00010958,2]
[422180230,1778656241000,-500.0,0.00010958,2]
[422180164,1778656241000,-500.0,0.00010958,2]
[422180222,1778656241000,-3607.66,0.00010958,2]
[422180203,1778656241000,-503.28668606,0.00010958,2]
[422180214,1778656241000,-502.18067408,0.00010958,2]
[422180197,1778656241000,-500.0,0.00010958,2]
[422180206,1778656241000,-500.0,0.00010958,2]
[422180173,1778656241000,-500.0,0.00010958,2]
[422180181,1778656241000,-500.0,0.00010958,2]
[422180180,1778656241000,-610.72,0.00010958,2]
[422180172,1778656241000,-2056.17,0.00010958,2]
[422180175,1778656241000,-500.0,0.00010958,2]
[422180170,1778656241000,-500.0,0.00010958,2]
[422180179,1778656241000,-500.0,0.00010958,2]
[422180178,1778656241000,-641.47,0.00010958,2]
[422180177,1778656241000,-1546.46,0.00010958,2]
[422180174,1778656241000,-500.0,0.00010958,2]
[422180176,1778656241000,-500.0,0.00010958,2]
[422180184,1778656241000,-500.0,0.00010958,2]
[422180195,1778656241000,-500.0,0.00010958,2]
[422180182,1778656241000,-500.0,0.00010958,2]
[422180183,1778656241000,-500.0,0.00010958,2]
[422180185,1778656241000,-756.54,0.00010958,2]
[422180198,1778656241000,-5752.97,0.00010958,2]
[422180196,1778656241000,-500.0,0.00010958,2]
[422180186,1778656241000,-1875.86,0.00010958,2]
[422180190,1778656241000,-949.27,0.00010958,2]
[422180193,1778656241000,-500.0,0.00010958,2]
[422180199,1778656241000,-2085.05,0.00010958,2]
[422180188,1778656241000,-3901.63,0.00010958,2]
[422180191,1778656241000,-500.0,0.00010958,2]
[422180192,1778656241000,-1834.49,0.00010958,2]
[422180187,1778656241000,-500.0,0.00010958,2]
[422180194,1778656241000,-1992.75,0.00010958,2]
[422180189,1778656241000,-500.0,0.00010958,2]
[422180275,1778656242000,-4271.97621797,0.00010989,2]
[422180264,1778656242000,-552.36,0.00010959,2]
[422180266,1778656242000,-552.36,0.00010959,2]
[422180265,1778656242000,-552.36,0.00010959,2]
[422180261,1778656242000,-2158.7,0.00010958,2]
[422180273,1778656242000,-154.631507,0.00010959,2]
[422180274,1778656242000,-1563.0,0.0001096,2]
[422180272,1778656242000,-151.0,0.00010959,2]
[422180271,1778656242000,-183.83,0.00010959,2]
[422180270,1778656242000,-230.0,0.00010959,2]
[422180269,1778656242000,-230.0,0.00010959,2]
[422180277,1778656242000,-276.27188603,0.00010995,2]
[422180263,1778656242000,-552.36,0.00010959,2]
[422180278,1778656242000,-668.65185757,0.00011007,2]
[422180281,1778656242000,-160.0,0.00011063,2]
[422180279,1778656242000,-693.3919763,0.00011062,2]
[422180287,1778656242000,-500.0,0.00011121,2]
[422180276,1778656242000,-152.0,0.00010993,2]
[422180280,1778656242000,-160.0,0.00011063,2]
[422180283,1778656242000,-239.29474895,0.00011063,2]
[422180284,1778656242000,-276.27188603,0.00011063,2]
[422180282,1778656242000,-160.0,0.00011063,2]
[422180285,1778656242000,-4276.49319418,0.00011089,2]
[422180289,1778656242000,-443.0,0.00011126,2]
[422180298,1778656242000,-518.66,0.00011232,2]
[422180300,1778656242000,-500.0,0.00011232,2]
[422180299,1778656242000,-500.0,0.00011232,2]
[422180268,1778656242000,-230.0,0.00010959,2]
[422180286,1778656242000,-719.04747942,0.00011117,2]
[422180267,1778656242000,-552.36,0.00010959,2]
[422180288,1778656242000,-647.0,0.00011126,2]
[422180258,1778656242000,-3073.51,0.00010958,2]
[422180234,1778656242000,-1836.59,0.00010958,2]
[422180232,1778656242000,-500.0,0.00010958,2]
[422180233,1778656242000,-500.0,0.00010958,2]
[422180248,1778656242000,-151.0,0.00010958,2]
[422180247,1778656242000,-500.0,0.00010958,2]
[422180236,1778656242000,-5969.9,0.00010958,2]
[422180246,1778656242000,-500.0,0.00010958,2]
[422180235,1778656242000,-538.55473316,0.00010958,2]
[422180237,1778656242000,-500.0,0.00010958,2]
[422180241,1778656242000,-500.0,0.00010958,2]
[422180240,1778656242000,-500.0,0.00010958,2]
[422180239,1778656242000,-500.0,0.00010958,2]
[422180242,1778656242000,-500.0,0.00010958,2]
[422180262,1778656242000,-232.0,0.00010959,3]
[422180238,1778656242000,-500.0,0.00010958,2]
[422180245,1778656242000,-500.0,0.00010958,2]
[422180243,1778656242000,-820.84,0.00010958,2]
[422180249,1778656242000,-892.78,0.00010958,2]
[422180251,1778656242000,-2976.08,0.00010958,2]
[422180260,1778656242000,-2916.51,0.00010958,2]
[422180254,1778656242000,-648.37,0.00010958,2]
[422180253,1778656242000,-627.3,0.00010958,2]
[422180259,1778656242000,-6479.34,0.00010958,2]
[422180250,1778656242000,-151.0,0.00010958,2]
[422180256,1778656242000,-500.0,0.00010958,2]
[422180257,1778656242000,-500.0,0.00010958,2]
[422180255,1778656242000,-500.0,0.00010958,2]
[422180252,1778656242000,-157.69376036,0.00010958,2]
[422180244,1778656242000,-2046.56,0.00010958,2]
[422180291,1778656242000,-276.27188603,0.00011132,2]
[422180355,1778656242000,-500.0,0.00011232,2]
[422180292,1778656242000,-745.65223616,0.00011172,2]
[422180330,1778656242000,-500.0,0.00011232,2]
[422180329,1778656242000,-500.0,0.00011232,2]
[422180326,1778656242000,-500.0,0.00011232,2]
[422180323,1778656242000,-500.0,0.00011232,2]
[422180328,1778656242000,-624.6,0.00011232,2]
[422180331,1778656242000,-500.0,0.00011232,2]
[422180335,1778656242000,-500.0,0.00011232,2]
[422180345,1778656242000,-743.64,0.00011232,2]
[422180334,1778656242000,-585.55,0.00011232,2]
[422180337,1778656242000,-500.0,0.00011232,2]
[422180344,1778656242000,-555.2,0.00011232,2]
[422180347,1778656242000,-225.69818473,0.00011232,2]
[422180339,1778656242000,-500.0,0.00011232,2]
[422180327,1778656242000,-502.34369721,0.00011232,2]
[422180340,1778656242000,-1134.48,0.00011232,2]
[422180346,1778656242000,-500.0,0.00011232,2]
[422180336,1778656242000,-500.0,0.00011232,2]
[422180342,1778656242000,-535.84,0.00011232,2]
[422180343,1778656242000,-500.0,0.00011232,2]
[422180351,1778656242000,-500.0,0.00011232,2]
[422180348,1778656242000,-500.0,0.00011232,2]
[422180350,1778656242000,-2064.24,0.00011232,2]
[422180352,1778656242000,-500.0,0.00011232,2]
[422180349,1778656242000,-500.0,0.00011232,2]
[422180356,1778656242000,-500.0,0.00011232,2]
[422180353,1778656242000,-500.0,0.00011232,2]
[422180354,1778656242000,-500.0,0.00011232,2]
[422180290,1778656242000,-185.0,0.00011126,2]
[422180338,1778656242000,-500.0,0.00011232,2]
[422180325,1778656242000,-500.0,0.00011232,2]
[422180341,1778656242000,-500.0,0.00011232,2]
[422180321,1778656242000,-500.0,0.00011232,2]
[422180294,1778656242000,-773.2413689,0.00011227,2]
[422180324,1778656242000,-568.28,0.00011232,2]
[422180296,1778656242000,-207.89,0.00011232,2]
[422180293,1778656242000,-4962.3208969,0.00011189,2]
[422180295,1778656242000,-3446.7552,0.00011232,2]
[422180297,1778656242000,-238.07,0.00011232,2]
[422180302,1778656242000,-500.0,0.00011232,2]
[422180301,1778656242000,-500.0,0.00011232,2]
[422180304,1778656242000,-500.0,0.00011232,2]
[422180305,1778656242000,-500.0,0.00011232,2]
[422180307,1778656242000,-500.0,0.00011232,2]
[422180306,1778656242000,-504.77089738,0.00011232,2]
[422180308,1778656242000,-638.61,0.00011232,2]
[422180312,1778656242000,-500.0,0.00011232,2]
[422180303,1778656242000,-511.25,0.00011232,2]
[422180333,1778656242000,-746.93,0.00011232,2]
[422180332,1778656242000,-500.0,0.00011232,2]
[422180313,1778656242000,-763.23,0.00011232,2]
[422180322,1778656242000,-500.0,0.00011232,2]
[422180317,1778656242000,-500.0,0.00011232,2]
[422180319,1778656242000,-500.0,0.00011232,2]
[422180320,1778656242000,-500.0,0.00011232,2]
[422180318,1778656242000,-500.0,0.00011232,2]
[422180310,1778656242000,-500.0,0.00011232,2]
[422180314,1778656242000,-500.0,0.00011232,2]
[422180311,1778656242000,-500.0,0.00011232,2]
[422180315,1778656242000,-500.0,0.00011232,2]
[422180309,1778656242000,-454.97473534,0.00011232,2]
[422180316,1778656242000,-558.22,0.00011232,2]
[422180406,1778656243000,-500.0,0.00011232,2]
[422180405,1778656243000,-504.70747229,0.00011232,2]
[422180400,1778656243000,-958.19,0.00011232,2]
[422180394,1778656243000,-500.0,0.00011232,2]
[422180392,1778656243000,-352.82,0.00011232,2]